bitfinex-derivatives/quotes_SOLF0:USTF0_20250528
["timestamp","ask_amount","ask_price","bid_price","bid_amount"]
[1748394463820,5.6559,176.72,176.7,5.69373149]
[1748394464216,5.6559,176.72,176.7,0.03733149]
[1748394469919,0.04140412,176.74,176.7,0.03733149]
[1748394470124,5.6562,176.71,176.7,0.03733149]
[1748394481936,28.26140412,176.74,176.73,5.6555]
[1748394481937,0.04140412,176.74,176.73,5.6555]
[1748394482236,11.3045,176.84,176.73,4.14675942]
[1748394482237,4.14675942,176.79,176.73,4.14675942]
[1748394483037,5.6544,176.77,176.74,5.655]
[1748394483239,5.69433958,176.77,176.74,0.04044124]
[1748394483430,5.69433958,176.77,176.74,5.69554124]
[1748394483836,5.6548,176.76,176.74,0.04044124]
[1748394486833,5.6549,176.75,176.74,0.04044124]
[1748394494537,0.03993958,176.77,176.74,0.04044124]
[1748394495943,5.6549,176.75,176.74,0.04044124]
[1748394504954,5.6565,176.7,176.69,28.2]
[1748394505151,28.2,176.76,176.69,28.2]
[1748394505352,28.2,176.76,176.67,7.5483]
[1748394505548,5.6563,176.71,176.67,7.5483]
[1748394506050,5.6989035,176.71,176.68,5.6571]
[1748394506550,5.6565,176.7,176.67,7.58814141]
[1748394506751,0.0426035,176.71,176.67,0.03964141]
[1748394506946,5.657,176.69,176.67,0.03964141]
[1748394510953,5.657,176.69,176.67,5.69704141]
[1748394511250,5.6571,176.68,176.67,0.03964141]
[1748394511954,0.0426035,176.71,176.67,0.03964141]
[1748394511955,5.6569,176.69,176.67,0.03964141]
[1748394512850,5.6569,176.69,176.67,5.69704141]
[1748394513458,0.0426035,176.71,176.67,0.03964141]
[1748394513656,0.0426035,176.71,176.67,2.03204141]
[1748394515062,516.82,176.82,176.68,6.48201951]
[1748394515357,516.82,176.82,176.71,6.48201951]
[1748394515551,516.82,176.82,176.74,5.655]
[1748394516062,0.04107657,176.8,176.72,137.44]
[1748394516251,0.04107657,176.8,176.74,0.03910582]
[1748394516753,5.6552,176.75,176.74,0.03910582]
[1748394520460,5.69385246,176.76,176.74,0.03910582]
[1748394520760,0.03915246,176.76,176.74,0.03910582]
[1748394521369,5.69395246,176.76,176.74,0.03910582]
[1748394521669,0.03915246,176.76,176.74,0.03910582]
[1748394522874,5.6549,176.75,176.74,0.03910582]
[1748394539081,0.03915246,176.76,176.74,5.69400582]
[1748394540178,0.03915246,176.76,176.74,0.03910582]
[1748394540879,5.6549,176.75,176.74,0.03910582]
[1748394543180,5.6549,176.75,176.74,5.82e-06]
[1748394543684,33.8349,176.75,176.74,5.82e-06]
[1748394544682,5.657,176.69,176.66,33.8376]
[1748394545684,5.69611694,176.69,176.66,33.87912907]
[1748394546580,5.69611694,176.69,176.67,5.6574]
[1748394546982,5.69611694,176.69,176.66,28.22152907]
[1748394547984,5.69611694,176.69,176.66,33.87902907]
[1748394550686,0.03911694,176.69,176.67,5.6574]
[1748394552088,5.69591694,176.69,176.67,5.6574]
[1748394553082,5.69591694,176.69,176.66,33.87912907]
[1748394553479,5.6571,176.68,176.66,33.87912907]
[1748394553686,5.6571,176.68,176.66,28.22152907]
[1748394553983,5.6574,176.67,176.66,28.22152907]
[1748394555991,5.6572,176.68,176.66,28.22152907]
[1748394556389,0.03911694,176.69,176.66,28.22152907]
[1748394556590,5.6571,176.68,176.66,28.22152907]
[1748394558191,5.6574,176.67,176.66,28.22152907]
[1748394559094,5.6572,176.68,176.66,28.22152907]
[1748394560691,0.03911694,176.69,176.66,28.22152907]
[1748394561890,0.03911694,176.69,176.68,5.6571]
[1748394562188,34.1128,176.78,176.67,6.48201951]
[1748394562382,34.1128,176.78,176.67,10.34151951]
[1748394562588,34.1128,176.78,176.72,5.6556]
[1748394563190,0.04280256,176.77,176.73,0.0408923]
[1748394563995,5.6552,176.74,176.73,0.0408923]
[1748394573004,34.64201951,176.74,176.6,6.48201951]
[1748394573295,34.64201951,176.74,176.64,28.16]
[1748394573492,5.6573,176.68,176.64,28.16]
[1748394573901,5.69366868,176.68,176.65,5.6579]
[1748394574103,0.03636868,176.68,176.64,28.19788126]
[1748394575904,0.03636868,176.68,176.67,5.6574]
[1748394578000,0.03636868,176.68,176.65,5.6578]
[1748394578206,0.03636868,176.68,176.64,28.19788126]
[1748394579203,5.6579,176.66,176.64,28.19788126]
[1748394579403,0.03636868,176.68,176.64,28.19788126]
[1748394580706,5.658,176.66,176.64,0.03788126]
[1748394581300,5.6581,176.65,176.64,0.03788126]
[1748394581705,0.03636868,176.68,176.64,0.03788126]
[1748394582007,5.658,176.66,176.64,0.03788126]
[1748394582505,0.03636868,176.68,176.64,0.03788126]
[1748394582708,0.03636868,176.68,176.65,5.658]
[1748394583297,0.03636868,176.68,176.64,5.69618126]
[1748394583705,0.03636868,176.68,176.64,0.03788126]
[1748394583906,0.03636868,176.68,176.65,5.658]
[1748394584107,0.03636868,176.68,176.64,0.03788126]
[1748394584514,0.03636868,176.68,176.65,5.658]
[1748394585005,5.69366868,176.68,176.65,5.658]
[1748394585214,0.03636868,176.68,176.64,5.69618126]
[1748394585603,5.6576,176.67,176.64,5.69618126]
[1748394586112,5.6576,176.67,176.65,5.658]
[1748394586306,5.6576,176.67,176.64,0.03788126]
[1748394586905,5.69356868,176.68,176.64,0.03788126]
[1748394587311,5.69356868,176.68,176.65,5.6579]
[1748394587917,0.03636868,176.68,176.66,5.6577]
[1748394589010,0.03636868,176.68,176.67,5.6574]
[1748394590810,5.6556,176.73,176.7,5.6562]
[1748394591011,28.16,176.76,176.7,5.6562]
[1748394591914,0.03746903,176.75,176.71,0.04049929]
[1748394592713,5.6558,176.72,176.71,0.04049929]
[1748394597418,0.03746903,176.75,176.71,0.04049929]
[1748394597620,6.51948854,176.75,176.71,0.04049929]
[1748394597921,34.65948854,176.75,176.71,0.04049929]
[1748394598216,5.6558,176.72,176.71,0.04049929]
[1748394599915,5.6574,176.67,176.66,28.14]
[1748394600519,34.62201951,176.75,176.66,28.14]
[1748394600520,5.6572,176.68,176.66,28.14]
[1748394601721,5.6574,176.67,176.66,28.14]
[1748394601914,0.03672609,176.69,176.66,28.14]
[1748394603722,11.3063,176.81,176.68,6.48201951]
[1748394603723,28.14,176.81,176.68,6.48201951]
[1748394603928,28.14,176.81,176.71,6.48201951]
[1748394604127,5.6543,176.77,176.74,5.6549]
[1748394604629,5.69062599,176.77,176.74,5.69304846]
[1748394605129,5.6546,176.76,176.74,0.03814846]
[1748394605725,5.6549,176.75,176.74,0.03814846]
[1748394606435,5.6546,176.76,176.74,0.03814846]
[1748394606823,0.03632599,176.77,176.74,0.03814846]
[1748394607622,5.69062599,176.77,176.74,5.69304846]
[1748394607932,0.03632599,176.77,176.74,0.03814846]
[1748394608432,0.03632599,176.77,176.75,5.6546]
[1748394609035,0.03632599,176.77,176.74,0.03814846]
[1748394609936,0.03632599,176.77,176.75,5.6546]
[1748394611236,5.69052599,176.77,176.75,5.6546]
[1748394611432,5.69052599,176.77,176.74,5.69314846]
[1748394612029,0.03632599,176.77,176.75,5.6549]
[1748394615541,5.69052599,176.77,176.74,5.69324846]
[1748394616548,0.03632599,176.77,176.75,5.6548]
[1748394617043,0.03632599,176.77,176.74,0.03814846]
[1748394618241,0.03632599,176.77,176.76,5.6545]
[1748394620446,0.03632599,176.77,176.75,5.6547]
[1748394622842,5.69052599,176.77,176.75,5.6547]
[1748394627747,0.03632599,176.77,176.75,5.6547]
[1748394629140,0.03632599,176.77,176.74,0.03814846]
[1748394629653,0.03632599,176.77,176.76,5.6545]
[1748394629841,28.12,176.86,176.76,28.12]
[1748394630042,5.6525,176.83,176.76,28.12]
[1748394630241,28.12,176.86,176.76,28.12]
[1748394630444,28.12,176.89,176.76,28.12]
[1748394630643,5.6522,176.84,176.76,28.12]
[1748394630843,0.03651303,176.82,176.78,0.04215249]
[1748394631150,5.6549,176.75,176.73,28.12]
[1748394631448,6.48201951,176.81,176.73,28.12]
[1748394631649,5.6551,176.75,176.73,28.12]
[1748394632149,5.6552,176.74,176.73,28.12]
[1748394638356,5.69553947,176.76,176.73,28.12]
[1748394638848,5.69553947,176.76,176.73,33.7753]
[1748394639054,5.69553947,176.76,176.73,28.12]
[1748394639750,5.69553947,176.76,176.73,33.7753]
[1748394640950,5.6549,176.75,176.73,33.7753]
[1748394641157,0.04073947,176.76,176.73,28.12]
[1748394642051,5.6555,176.73,176.72,0.0375911]
[1748394643054,28.16073947,176.76,176.59,1.8764]
[1748394643251,28.16073947,176.76,176.6,139.2414]
[1748394643252,6.48201951,176.74,176.6,139.2414]
[1748394643448,6.48201951,176.74,176.64,5.6581]
[1748394643649,5.6578,176.66,176.63,28.12]
[1748394643849,6.48201951,176.74,176.63,28.12]
[1748394644050,6.48201951,176.74,176.67,0.0384696]
[1748394644253,0.04158794,176.7,176.67,0.0384696]
[1748394645159,5.6571,176.68,176.67,0.0384696]
[1748394645353,0.04158794,176.7,176.67,0.0384696]
[1748394645754,5.6571,176.68,176.67,0.0384696]
[1748394647766,5.6569,176.69,176.67,0.0384696]
[1748394647965,0.04158794,176.7,176.67,5.6958696]
[1748394648161,0.04158794,176.7,176.67,0.0384696]
[1748394648867,0.04158794,176.7,176.68,5.6569]
[1748394649667,5.69808794,176.7,176.67,33.8158696]
[1748394650172,5.6571,176.68,176.67,0.0384696]
[1748394654569,5.6568,176.69,176.67,0.0384696]
[1748394656571,5.6571,176.68,176.67,0.0384696]
[1748394660577,5.6568,176.69,176.67,0.0384696]
[1748394661075,0.04158794,176.7,176.67,0.0384696]
[1748394662676,0.04158794,176.7,176.69,5.6568]
[1748394664277,28.12,176.79,176.67,34.64048911]
[1748394664473,28.12,176.79,176.67,143.74201951]
[1748394664676,5.6552,176.74,176.71,5.6559]
[1748394665175,5.69150539,176.74,176.71,0.04144059]
[1748394665980,5.6557,176.73,176.71,0.04144059]
[1748394666379,0.03630539,176.74,176.71,0.04144059]
[1748394666579,5.69170539,176.74,176.71,5.69754059]
[1748394666779,0.03630539,176.74,176.71,5.69754059]
[1748394666979,0.03630539,176.74,176.71,0.04144059]
[1748394667390,5.6555,176.73,176.71,0.04144059]
[1748394667777,5.6558,176.72,176.71,0.04144059]
[1748394668484,5.6556,176.73,176.71,0.04144059]
[1748394671393,5.6558,176.72,176.71,0.04144059]
[1748394671691,0.03630539,176.74,176.71,0.04144059]
[1748394671991,5.6556,176.73,176.71,0.04144059]
[1748394672396,0.03630539,176.74,176.73,5.6555]
[1748394672791,0.03630539,176.74,176.71,0.04144059]
[1748394673992,0.03630539,176.74,176.72,5.6557]
[1748394674596,0.03630539,176.74,176.73,5.6555]
[1748394674797,1.9111,176.8,176.72,28.12]
[1748394674987,33.9059,176.85,176.72,28.12]
[1748394675897,0.0371721,176.8,176.77,0.03623502]
[1748394676792,5.6539,176.78,176.77,0.03623502]
[1748394681091,5.6537,176.79,176.77,0.03623502]
[1748394681400,0.0371721,176.8,176.77,0.03623502]
[1748394681701,5.6536,176.79,176.77,0.03623502]
[1748394682301,5.6905721,176.8,176.77,5.69033502]
[1748394682497,0.0371721,176.8,176.77,0.03623502]
[1748394683290,0.0371721,176.8,176.79,5.6536]
[1748394683801,0.0371721,176.8,176.78,5.6539]
[1748394685801,0.0371721,176.8,176.77,0.03623502]
[1748394686301,5.6539,176.78,176.77,0.03623502]
[1748394692006,5.6537,176.79,176.77,0.03623502]
[1748394692208,0.0371721,176.8,176.77,0.03623502]
[1748394692611,5.6906721,176.8,176.77,5.69023502]
[1748394692807,5.6906721,176.8,176.77,0.03623502]
[1748394692808,0.0371721,176.8,176.77,0.03623502]
[1748394693007,0.0371721,176.8,176.77,28.13623502]
[1748394694609,5.6907721,176.8,176.77,28.13623502]
[1748394695209,5.6537,176.79,176.77,28.13623502]
[1748394695717,5.6539,176.78,176.77,28.13623502]
[1748394697108,5.6539,176.78,176.77,0.03623502]
[1748394706722,5.6539,176.78,176.77,3.502e-05]
[1748394717721,5.6537,176.79,176.77,3.502e-05]
[1748394717914,0.0371721,176.8,176.77,3.502e-05]
[1748394718319,5.6539,176.78,176.77,3.502e-05]
[1748394720129,5.6537,176.79,176.77,3.502e-05]
[1748394720324,0.0371721,176.8,176.77,3.502e-05]
[1748394720725,5.6538,176.79,176.77,3.502e-05]
[1748394720922,0.0371721,176.8,176.77,3.502e-05]
[1748394721326,5.6538,176.79,176.77,3.502e-05]
[1748394721725,0.0371721,176.8,176.77,3.502e-05]
[1748394721925,5.6904721,176.8,176.77,3.502e-05]
[1748394722326,5.6904721,176.8,176.77,5.65413502]
[1748394722731,5.6904721,176.8,176.77,3.502e-05]
[1748394723424,0.0371721,176.8,176.77,3.502e-05]
[1748394724235,0.0371721,176.8,176.79,5.6536]
[1748394724632,0.0371721,176.8,176.79,33.7536]
[1748394725638,0.0371721,176.8,176.79,28.1]
[1748394725935,0.0371721,176.8,176.77,3.502e-05]
[1748394726336,5.6539,176.78,176.77,3.502e-05]
[1748394743847,5.6537,176.79,176.77,3.502e-05]
[1748394744750,5.6536,176.79,176.77,3.502e-05]
[1748394744948,0.0371721,176.8,176.77,3.502e-05]
[1748394745652,5.6539,176.78,176.77,3.502e-05]
[1748394751671,0.0371721,176.8,176.77,5.65423502]
[1748394751672,5.6537,176.79,176.77,5.65423502]
[1748394753862,0.0371721,176.8,176.77,3.502e-05]
[1748394755065,0.0371721,176.8,176.79,5.6536]
[1748394758765,0.0371721,176.8,176.77,3.502e-05]
[1748394759170,5.6906721,176.8,176.77,5.65403502]
[1748394759865,0.0371721,176.8,176.77,3.502e-05]
[1748394761065,5.6539,176.78,176.77,3.502e-05]
[1748394770177,7.5963,176.78,176.77,3.502e-05]
[1748394770479,5.6561,176.72,176.69,5.6567]
[1748394770678,8.42441951,176.78,176.69,5.6567]
[1748394771474,0.04141713,176.75,176.72,0.03859449]
[1748394772571,5.6555,176.73,176.72,0.03859449]
[1748394773284,5.6555,176.73,176.64,3.7698]
[1748394773285,5.6571,176.69,176.65,28.08]
[1748394773787,28.08,176.76,176.67,5.6572]
[1748394773974,5.6566,176.7,176.67,5.6572]
[1748394774381,5.69556525,176.7,176.67,5.698185]
[1748394776677,5.6569,176.69,176.67,5.698185]
[1748394777085,0.03896525,176.7,176.67,0.040985]
[1748394777382,5.6571,176.68,176.67,0.040985]
[1748394778981,5.6582,176.65,176.59,1.8986]
[1748394779181,5.6582,176.65,176.6,28.1]
[1748394779683,5.6582,176.65,176.62,5.6588]
[1748394780083,0.03686297,176.65,176.62,0.03732317]
[1748394781379,0.03686297,176.65,176.63,5.6587]
[1748394781579,0.03686297,176.65,176.64,28.08]
[1748394781788,28.1,176.72,176.64,28.08]
[1748394781982,5.6561,176.72,176.69,5.6566]
[1748394782792,5.69662888,176.72,176.69,5.69703747]
[1748394782993,5.6562,176.71,176.69,5.69703747]
[1748394783890,5.69652888,176.72,176.69,5.69703747]
[1748394786597,0.04052888,176.72,176.69,0.04043747]
[1748394787898,0.04052888,176.72,176.71,5.6561]
[1748394790096,0.04052888,176.72,176.7,5.6564]
[1748394790595,5.69642888,176.72,176.69,5.69713747]
[1748394790789,0.04052888,176.72,176.69,0.04043747]
[1748394791395,5.6561,176.71,176.69,0.04043747]
[1748394791596,0.04052888,176.72,176.69,0.04043747]
[1748394791791,5.6565,176.7,176.69,0.04043747]
[1748394793496,5.6565,176.7,176.69,0.00330892]
[1748394793691,5.6583,176.65,176.62,28.1]
[1748394794191,5.6583,176.65,176.62,33.7588]
[1748394794596,5.6974642,176.65,176.62,33.80201114]
[1748394795091,0.0391642,176.65,176.62,33.80201114]
[1748394796201,0.0391642,176.65,176.62,28.14321114]
[1748394796399,0.0391642,176.65,176.62,0.04321114]
[1748394796698,5.6584,176.64,176.62,0.04321114]
[1748394798606,5.6587,176.63,176.62,0.04321114]
[1748394799295,5.6585,176.64,176.62,0.04321114]
[1748394799500,0.0391642,176.65,176.62,0.04321114]
[1748394800103,5.6584,176.64,176.62,5.70211114]
[1748394801104,0.0391642,176.65,176.62,0.04321114]
[1748394802001,0.0391642,176.65,176.64,5.6584]
[1748394805808,15.3616,176.74,176.63,28.1]
[1748394805809,28.1,176.73,176.67,5.6571]
[1748394806312,5.6565,176.7,176.67,5.6571]
[1748394806804,5.69867131,176.7,176.67,5.69306292]
[1748394808011,0.04217131,176.7,176.67,0.03596292]
[1748394808513,5.6571,176.68,176.67,0.03596292]
[1748394812509,0.04217131,176.7,176.67,5.69316292]
[1748394812907,0.04217131,176.7,176.67,0.03596292]
[1748394813108,5.69887131,176.7,176.68,5.657]
[1748394813512,0.04217131,176.7,176.67,0.03596292]
[1748394813719,5.657,176.69,176.67,5.69316292]
[1748394813911,0.04217131,176.7,176.67,0.03596292]
[1748394814513,5.6571,176.68,176.67,0.03596292]
[1748394816012,5.6569,176.69,176.67,0.03596292]
[1748394816219,5.6569,176.69,176.67,5.69336292]
[1748394819418,5.6571,176.68,176.67,0.03596292]
[1748394832329,28.08,176.69,176.6,28.08]
[1748394832732,5.6584,176.65,176.62,5.6588]
[1748394833236,5.69662513,176.65,176.62,5.69913905]
[1748394834138,5.6584,176.64,176.62,5.69913905]
[1748394834333,0.03822513,176.65,176.62,5.69913905]
[1748394834837,5.69652513,176.65,176.62,5.69913905]
[1748394836035,5.6584,176.64,176.62,0.04033905]
[1748394837940,5.6584,176.64,176.62,5.69933905]
[1748394838439,5.6584,176.64,176.62,0.04033905]
[1748394840433,0.03822513,176.65,176.62,0.04033905]
[1748394840640,5.6587,176.63,176.62,0.04033905]
[1748394846141,5.6585,176.64,176.62,0.04033905]
[1748394846444,0.03822513,176.65,176.62,0.04033905]
[1748394847641,5.6584,176.64,176.62,0.04033905]
[1748394847846,0.03822513,176.65,176.62,0.04033905]
[1748394849442,0.03822513,176.65,176.64,5.6584]
[1748394855947,5.6565,176.71,176.68,5.6568]
[1748394856143,5.6565,176.71,176.64,28.08]
[1748394856448,33.9612,176.75,176.64,28.08]
[1748394857043,5.6568,176.69,176.68,0.04281436]
[1748394858439,0.0394587,176.71,176.68,0.04281436]
[1748394858840,5.6958587,176.71,176.68,5.69971436]
[1748394859043,0.0394587,176.71,176.68,0.04281436]
[1748394859448,5.6567,176.7,176.68,0.04281436]
[1748394860146,5.6568,176.69,176.68,0.04281436]
[1748394872669,5.6568,176.69,176.68,0.00138795]
[1748394880379,5.6588,176.63,176.61,28.06]
[1748394880575,6.48201951,176.68,176.61,28.06]
[1748394881076,5.659,176.62,176.61,28.06]
[1748394881577,5.6593,176.61,176.6,0.03947011]
[1748394905901,4.15335154,176.61,176.53,28.06]
[1748394906094,4.15335154,176.57,176.53,28.06]
[1748394906287,5.6614,176.55,176.53,28.06]
[1748394907408,5.69710759,176.56,176.53,33.7219]
[1748394907799,0.03600759,176.56,176.53,33.7219]
[1748394908806,5.6613,176.55,176.53,28.06]
[1748394912003,5.6613,176.55,176.53,33.7219]
[1748394912503,5.6613,176.55,176.53,28.06]
[1748394913297,0.03600759,176.56,176.5,28.08]
[1748394915205,28.11600759,176.56,176.47,28.08]
[1748394915408,0.04331516,176.53,176.47,28.08]
[1748394915708,5.6627,176.51,176.48,5.6634]
[1748394916203,5.6624,176.52,176.49,5.663]
[1748394916800,5.6626,176.51,176.48,5.6634]
[1748394917105,0.04331516,176.53,176.47,28.08]
[1748394917406,5.6627,176.51,176.48,5.6633]
[1748394918108,5.6623,176.52,176.49,5.6631]
[1748394918908,5.6626,176.51,176.48,5.6634]
[1748394919410,0.04331516,176.53,176.47,28.08]
[1748394919607,5.6635,176.49,176.47,28.08]
[1748394919808,5.6635,176.49,176.46,5.664]
[1748394920110,5.70541217,176.49,176.46,5.664]
[1748394920710,5.6635,176.48,176.46,5.664]
[1748394921309,0.04191217,176.49,176.45,3.9422]
[1748394921506,0.04191217,176.49,176.44,30.1062]
[1748394921706,0.04191217,176.49,176.44,28.08]
[1748394922008,5.664,176.47,176.44,5.6648]
[1748394923007,5.70541217,176.49,176.44,5.6648]
[1748394923211,0.04191217,176.49,176.45,5.6643]
[1748394923711,5.6637,176.48,176.45,5.6643]
[1748394924307,5.6639,176.47,176.45,5.6643]
[1748394925209,0.04191217,176.49,176.43,5.665]
[1748394926013,5.6644,176.46,176.43,5.665]
[1748394926407,5.6649,176.44,176.42,5.6653]
[1748394926913,0.04342266,176.45,176.42,5.6653]
[1748394927112,5.6648,176.44,176.42,5.6653]
[1748394927507,0.04342266,176.45,176.41,33.7457]
[1748394927813,0.04342266,176.45,176.41,28.08]
[1748394928713,5.6649,176.44,176.41,28.08]
[1748394929211,5.70802266,176.45,176.42,5.6654]
[1748394929712,5.6649,176.44,176.42,5.6654]
[1748394931212,0.04342266,176.45,176.41,28.08]
[1748394931213,5.70802266,176.45,176.41,28.08]
[1748394931615,0.04342266,176.45,176.38,1.971]
[1748394931811,0.04342266,176.45,176.36,28.08]
[1748394932310,0.04342266,176.45,176.38,5.6665]
[1748394932511,0.04342266,176.45,176.36,28.08]
[1748394932812,6.49267425,176.43,176.34,3.8371]
[1748394933015,0.03862916,176.4,176.34,3.8371]
[1748394933724,0.03862916,176.4,176.33,28.08]
[1748394934314,6.53130341,176.4,176.33,28.08]
[1748394934614,6.53130341,176.4,176.3,30.1038]
[1748394934808,28.08,176.39,176.3,30.1038]
[1748394935115,0.0410543,176.36,176.3,30.1038]
[1748394935317,0.0410543,176.36,176.26,2.0504]
[1748394935514,0.0410543,176.36,176.28,28.08]
[1748394935721,6.49267425,176.34,176.26,2.0504]
[1748394935915,0.04258586,176.32,176.25,28.08]
[1748394936113,34.57267425,176.31,176.22,28.08]
[1748394936322,0.03951873,176.28,176.22,5.6719]
[1748394936918,0.03951873,176.28,176.23,5.6714]
[1748394937310,0.03951873,176.28,176.19,33.91]
[1748394938022,0.03951873,176.28,176.24,5.671]
[1748394938217,0.03951873,176.28,176.19,33.91]
[1748394939323,5.6704,176.27,176.23,5.6713]
[1748394939919,5.70951873,176.28,176.24,5.671]
[1748394940428,5.70951873,176.28,176.25,5.6707]
[1748394941124,5.70951873,176.28,176.24,5.6712]
[1748394941716,5.70951873,176.28,176.25,5.6707]
[1748394942422,0.03951873,176.28,176.26,5.6706]
[1748394942628,0.03951873,176.28,176.19,33.91]
[1748394943027,0.03951873,176.28,176.26,5.6704]
[1748394943626,0.03951873,176.28,176.19,33.91]
[1748394943927,0.03951873,176.28,176.25,5.6709]
[1748394944130,0.03951873,176.28,176.19,33.91]
[1748394946327,5.6703,176.27,176.19,33.91]
[1748394946637,5.6703,176.27,176.23,5.6713]
[1748394946828,5.6706,176.26,176.23,5.6713]
[1748394947129,28.1,176.27,176.16,28.1]
[1748394947430,0.04005716,176.23,176.16,28.1]
[1748394947636,0.04005716,176.23,176.19,5.6726]
[1748394948730,5.6719,176.22,176.19,5.6726]
[1748394948933,0.04005716,176.23,176.19,5.6726]
[1748394949132,0.04005716,176.23,176.2,5.6725]
[1748394949329,0.04005716,176.23,176.16,28.1]
[1748394950233,0.04005716,176.23,176.22,5.6719]
[1748394951226,28.1,176.3,176.21,0.03717427]
[1748394951834,5.67,176.28,176.25,5.6708]
[1748394952231,5.71283598,176.28,176.25,5.71051868]
[1748394953033,0.04283598,176.28,176.26,5.6705]
[1748394954135,5.71283598,176.28,176.25,5.71051868]
[1748394954338,5.71283598,176.28,176.25,0.03971868]
[1748394954933,5.71283598,176.28,176.25,5.71051868]
[1748394956945,5.6705,176.27,176.25,0.03971868]
[1748394958241,5.71293598,176.28,176.25,0.03971868]
[1748394958637,0.04283598,176.28,176.25,0.03971868]
[1748394959339,5.6705,176.27,176.25,0.03971868]
[1748394959540,0.04283598,176.28,176.25,5.71051868]
[1748394960140,5.6703,176.27,176.25,0.03971868]
[1748394964846,5.6703,176.27,176.25,5.71061868]
[1748394965245,0.04283598,176.28,176.25,0.03971868]
[1748394965450,0.04283598,176.28,176.27,5.6703]
[1748394970448,3.8224,176.37,176.26,6.49267425]
[1748394970639,10.31507425,176.37,176.24,28.28]
[1748394970849,6.49267425,176.36,176.24,28.28]
[1748394971041,6.49267425,176.36,176.28,5.6697]
[1748394971242,28.28,176.35,176.28,5.6697]
[1748394971446,5.669,176.31,176.3,0.04044695]
[1748394973539,5.6687,176.32,176.3,0.04044695]
[1748394974142,5.669,176.31,176.3,0.04044695]
[1748394978140,6.53509509,176.33,176.24,28.28]
[1748394978448,6.49267425,176.33,176.24,28.28]
[1748394979047,0.03990885,176.3,176.27,0.04141346]
[1748394979645,5.6699,176.29,176.27,0.04141346]
[1748394981446,0.03990885,176.3,176.28,5.6697]
[1748394982051,5.70920885,176.3,176.28,5.6697]
[1748394982347,5.70920885,176.3,176.27,5.71151346]
[1748394983557,0.03990885,176.3,176.27,0.04141346]
[1748394984848,5.6699,176.28,176.27,0.04141346]
[1748394985552,5.6697,176.29,176.27,0.04141346]
[1748394987258,0.03990885,176.3,176.27,0.04141346]
[1748394988458,5.70930885,176.3,176.27,5.71151346]
[1748394990763,5.6698,176.29,176.27,0.04141346]
[1748394991556,5.6698,176.29,176.27,5.71161346]
[1748394992162,5.6698,176.29,176.27,0.04141346]
[1748394992457,5.6698,176.29,176.27,5.71161346]
[1748394992658,5.6699,176.28,176.27,0.04141346]
[1748394995361,5.6697,176.29,176.27,0.04141346]
[1748394996667,5.6697,176.29,176.27,5.71161346]
[1748394996870,0.03990885,176.3,176.27,5.71161346]
[1748394997263,5.70950885,176.3,176.27,5.71161346]
[1748394997473,0.03990885,176.3,176.27,0.04141346]
[1748394997966,0.03990885,176.3,176.28,5.6699]
[1748394998374,0.03990885,176.3,176.27,0.04141346]
[1748394999174,5.70940885,176.3,176.27,5.71161346]
[1748394999972,5.6696,176.29,176.27,5.71161346]
[1748395000272,5.6696,176.29,176.27,0.04141346]
[1748395000776,0.03990885,176.3,176.27,0.04141346]
[1748395001373,5.6697,176.29,176.27,0.04141346]
[1748395001776,0.03990885,176.3,176.27,0.04141346]
[1748395002076,5.70930885,176.3,176.27,5.71151346]
[1748395002475,0.03990885,176.3,176.28,5.6697]
[1748395003175,5.70920885,176.3,176.28,5.6697]
[1748395004172,0.03990885,176.3,176.28,5.6697]
[1748395005273,0.03990885,176.3,176.27,0.04141346]
[1748395005274,0.03990885,176.3,176.29,5.6696]
[1748395005778,0.03990885,176.3,176.28,5.6698]
[1748395006071,0.03990885,176.3,176.27,0.04141346]
[1748395006579,5.70940885,176.3,176.27,5.71151346]
[1748395006771,0.03990885,176.3,176.27,0.04141346]
[1748395008581,5.6699,176.28,176.27,0.04141346]
[1748395017876,5.6699,176.28,176.27,1.346e-05]
[1748395018079,5.6721,176.22,176.19,28.18]
[1748395018280,28.18,176.26,176.19,28.18]
[1748395018485,28.18,176.26,176.17,489.9]
[1748395018486,6.0033,176.25,176.17,489.9]
[1748395018681,5.6727,176.2,176.16,28.18]
[1748395018981,5.71460774,176.2,176.16,28.18]